[Event "1000GM MLK Day RR IM-Norm 2024"]
[Site "Sunnyvale"]
[Date "2024.01.20"]
[Round "5.5"]
[White "Chiang, Jacob"]
[Black "Delgado Ramirez, Neuris"]
[Result "1/2-1/2"]
[ECO "A21"]
[WhiteElo "2200"]
[BlackElo "2517"]
[Annotator "TA"]
[PlyCount "230"]
[EventDate "2024.01.12"]
[EventType "tourn"]
[EventCountry "USA"]
[SourceTitle "playchess.com"]
[Source "ChessBase"]
[SourceQuality "1"]
[TimeControl "5400+30"]

{[%evp 13,229,-14,24,-9,0,-20,-8,-17,0,0,-4,0,-16,-29,-20,-26,-13,-47,-27,-33,45,46,46,36,63,64,66,62,68,66,72,16,22,16,17,12,12,12,10,10,34,18,21,19,33,19,24,14,20,0,0,0,0,0,0,0,0,0,0,0,0,0,0,0,0,0,0,0,0,0,0,0,0,0,0,0,0,0,0,0,0,-8,-8,-18,-18,-18,-18,-18,-18,-29,-29,-30,-30,-35,-35,-105,-85,-220,-25,-157,-140,-170,-170,-170,-170,-170,-170,-170,-170,-250,-248,-249,-247,-445,-441,-412,-363,-322,-32,-36,-8,-5193,-4882,-5065,-3456,-2601,-8,-2345,-2345,-1537,-1302,-11703,-8,-8,-8,-8,-8,-8,-8,-8,-8,-8,-8,-8,-8,-8,-8,-8,-8,-8,-8,-8,-8,-8,-8,-8,-8,-8,-8,-8,-8,-8,-8,-8,-8,-8,-8,-8,-8,-8,-8,-73,-8,-8,-8,-8,-8,-8,-8,-8,-8,-8,0,-8,-8,-8,-8,-8,-8,-8,0,0,0,0,0,0,0,0,0,0,0,0,0,0,0,0,0,-8,-8,-8,-8,-8,-8,-8,-8,-8,0,0]} 1. c4 {[%emt 0:00:00]} d6 {[%emt 0:08:10]} 2. Nc3 {[%emt 0:00:09]} e5 {[%emt 0:00:06]} 3. g3 {[%emt 0:00:13]} g6 {[%emt 0:00:37]} 4. Bg2 {[%emt 0:00:05]} Bg7 {[%emt 0:00:05]} 5. Nf3 {[%emt 0:01:10]} Ne7 {[%emt 0:00:48]} 6. O-O {[%emt 0:00:24]} O-O {[%emt 0:00:27]} 7. d3 {[%emt 0:00:58]} c6 {[%emt 0:00:21]} 8. Bd2 {[%emt 0:02:27] A21: English Opening: 1...e5 2 Nc3.} d5 {[%emt 0:00:29]} 9. cxd5 {[%emt 0:00:19]} cxd5 {[%emt 0:00:04]} 10. Rc1 {[%emt 0:00:58]} Nbc6 {[%emt 0:00:11]} 11. a3 {[%emt 0:01:55] [#]} h6 $146 {[%emt 0:02:23]} ({Predecessor:} 11... Rb8 12. Na4 h6 13. b4 a6 14. Nc5 b6 15. Nb3 Rb7 16. e3 Qd6 17. Qc2 Bd7 {0-1 Rodriguez Cordoba,J-Quinteros,M Pan American Team-ch01 1971 (2.4)}) 12. b4 {[%emt 0:00:45]} Be6 {[%emt 0:02:50]} 13. Na4 {[%emt 0:02:50]} b6 {[%emt 0:01:19]} 14. b5 {[%emt 0:10:16]} Nd4 {[%emt 0:00:15]} 15. Nc3 {[%emt 0:02:01][%cal Ba4c3,Bc3a2,Ba2b4][%mdl 32]} Qd7 {[%emt 0:00:43]} 16. a4 {[%emt 0:00:57]} Rac8 {[%emt 0:00:54]} (16... Nxf3+ $15 17. Bxf3 Rac8) 17. Nxd4 $14 {[%emt 0:02:20]} exd4 {[%emt 0:00:04]} 18. Na2 {[%emt 0:00:15]} Rfe8 {[%emt 0:00:07]} 19. Nb4 {[%emt 0:04:22]} h5 {[%emt 0:00:45]} 20. Rxc8 {[%emt 0:10:43]} Rxc8 {[%emt 0:00:21]} 21. Qb1 {[%emt 0:01:30]} Bg4 {[%emt 0:00:28]} 22. f3 {[%emt 0:02:13]} (22. Bg5 $16) 22... Bh3 {[%emt 0:02:31]} 23. Rc1 {[%emt 0:03:16]} Re8 {[%emt 0:00:26][%cal Bc8e8,Be8e2,Be2a2][%mdl 32]} 24. Bf4 {[%emt 0:14:11]} Bxg2 {[%emt 0:01:23]} 25. Kxg2 {[%emt 0:01:04]} Nf5 {[%emt 0:00:05]} 26. Qa2 {[%emt 0:01:03]} Qe6 {[%emt 0:02:03]} 27. Nxd5 {[%emt 0:03:16] White wants to play Kf2.} (27. Rc2 $5 {[%cal Ra2d5]}) 27... Qxe2+ {[%emt 0:00:12]} 28. Qxe2 {[%emt 0:00:04]} Rxe2+ {[%emt 0:00:16]} 29. Kf1 {[%emt 0:03:03]} Ra2 {[%emt 0:00:42]} 30. Rc8+ {[%emt 0:01:08]} Kh7 {[%emt 1:16:25]} 31. Ra8 {[%emt 0:02:43]} Rxa4 {[%emt 0:00:00]} 32. Nxb6 {[%emt 0:00:19]} Ra1+ {[%emt 0:00:00]} 33. Kf2 {[%emt 0:01:28]} Ne3 {[%emt 0:00:00]} 34. Nc4 {[%emt 0:02:59]} Nd1+ {[%emt 0:00:00]} 35. Kg2 {[%emt 0:01:01]} Ra2+ {[%emt 0:00:00]} 36. Kf1 {[%emt 0:01:02]} Nc3 {[%emt 0:00:00]} 37. b6 {[%emt 0:00:07]} axb6 {[%emt 0:00:00]} 38. Rxa2 {[%emt 0:00:06]} Nxa2 {[%emt 0:00:00]} 39. Nxb6 $11 {[%emt 0:00:06][%mdl 4096] Endgame KBN-KBN} Bh6 {[%emt 0:00:00]} 40. Be5 {[%emt 0:04:13] Prevents Bxf4.} Bg7 {[%emt 0:00:00] Repels Bxd4} 41. Bf4 {[%emt 0:00:09]} Nc3 {[%emt 0:00:00]} 42. Nc4 {[%emt 0:01:01]} f6 {[%emt 0:00:00]} 43. Bd2 {[%emt 0:00:42]} Nb5 {[%emt 0:00:00]} 44. Ke2 {[%emt 0:00:10]} Kg8 {[%emt 0:00:00]} 45. h3 {[%emt 0:02:03]} Kf7 {[%emt 0:00:00]} 46. g4 {[%emt 0:00:29]} Ke6 {[%emt 0:00:00]} 47. Bb4 {[%emt 0:00:58]} Bh6 {[%emt 0:00:00]} 48. Na3 {[%emt 0:09:15]} Nc7 {[%emt 0:00:00]} 49. Nc2 {[%emt 0:00:35]} Ke5 {[%emt 0:00:00]} 50. Be1 {[%emt 0:01:08]} Ne6 {[%emt 0:00:00]} 51. Bg3+ {[%emt 0:00:30]} Bf4 {[%emt 0:00:00]} 52. Bf2 {[%emt 0:00:26]} Kd5 {[%emt 0:00:00]} 53. Be1 {[%emt 0:01:10]} Bd6 {[%emt 0:00:00] ...Nf4+ is the strong threat.} 54. Bd2 {[%emt 0:00:27]} (54. gxh5 $15 Nf4+ 55. Kd2) 54... h4 $17 {[%emt 0:00:00]} 55. Ne1 {[%emt 0:01:30]} (55. Kf1 $17 {was worth a try.}) 55... Bg3 $2 {[%emt 0:00:00]} ({Black should play} 55... Bf4 $1 $19 {[%cal Rf4d2] ...Bxd2 would be deadly.} 56. Ng2 Bxd2 57. Kxd2 Ke5 58. Nxh4 Nf4) 56. Nc2 {[%emt 0:06:10]} (56. Ng2 $1 $11 {was the only way to keep the balance.}) 56... Bf4 $1 {[%emt 0:00:00]} 57. Be1 {[%emt 0:00:21]} Bg5 {[%emt 0:00:00]} 58. Bf2 {[%emt 0:00:22]} Nf4+ {[%emt 0:00:00]} 59. Kf1 {[%emt 0:00:30]} Nxh3 {[%emt 0:00:00]} 60. Bxd4 {[%emt 0:00:07]} Nf4 {[%emt 0:00:00]} 61. Bg1 {[%emt 0:03:56]} (61. Ba7 $142) 61... Nxd3 $19 {[%emt 0:00:00]} 62. Ne3+ {[%emt 0:00:39]} Ke6 {[%emt 0:00:00]} 63. Nc2 $2 {[%emt 0:00:39]} (63. Nd1) 63... h3 {[%emt 0:00:00]} 64. Nd4+ {[%emt 0:00:23]} Kd5 {[%emt 0:00:00][%cal Oh3h2] White must now prevent ...h2!} 65. Ne2 {[%emt 0:00:10]} Bh4 $2 {[%emt 0:00:00]} (65... Bf4 $19 {Threatens to win with ...Be5.} 66. Nxf4+ Nxf4) 66. Bh2 $15 {[%emt 0:00:46]} Bf2 {[%emt 0:00:00]} 67. Nf4+ $2 {[%emt 0:00:23][%mdl 8192]} (67. Nc1 $11 Nxc1 68. Kxf2) 67... Nxf4 $19 {[%emt 0:00:00]} 68. Kxf2 {[%emt 0:00:15] KB-KN} g5 {[%emt 0:00:00]} 69. Ke3 {[%emt 0:00:25]} Ne6 $2 {[%emt 0:00:00]} (69... Kc4 $1 $19 70. Kd2 Ng6) 70. Bg3 $2 {[%emt 0:00:15][%mdl 8192]} (70. Kf2 $11) 70... Kc4 $1 {[%emt 0:00:00] Strongly threatening ...Kd5.} 71. Bh2 {[%emt 0:01:06]} Kc3 $1 {[%emt 0:00:00][%cal Oe6f4] aiming for ...Nf4!} 72. Ke4 {[%emt 0:00:14] [#] Repels Nf4} Kc2 $2 {[%emt 0:00:00]} (72... Kd2 $1 $19 {[%cal Rd2e2] ( -> ...Ke2)} 73. Kf5 Nd4+ 74. Ke4 Nc2) 73. Kf5 $1 $11 {[%emt 0:00:27][%csl LRe6,LRf6]} Nd4+ {[%emt 0:00:00]} 74. Ke4 $1 {[%emt 0:00:04]} Nb3 {[%emt 0:00:00]} (74... Kc3 $5) 75. f4 {[%emt 0:01:27]} Nd2+ {[%emt 0:00:00]} 76. Kf5 {[%emt 0:00:16]} Nf3 {[%emt 0:00:00]} 77. Bg3 $1 {[%emt 0:00:05]} Nd4+ {[%emt 0:00:00]} (77... gxf4 {simplifies} 78. Bxf4 h2 79. Bxh2 Nxh2 80. Kxf6 Nxg4+ 81. Ke6 Nh6) 78. Kxf6 {[%emt 0:00:06]} Ne2 {[%emt 0:00:00][%csl LRf4,LRg3]} 79. fxg5 $1 {[%emt 0:00:05] Threatening mate with Bh2.} Nxg3 {[%emt 0:00:00] KN-KPP} 80. g6 {[%emt 0:00:04]} Ne4+ {[%emt 0:00:00]} 81. Ke7 {[%emt 0:00:36]} h2 {[%emt 0:00:00]} 82. g7 {[%emt 0:00:05]} h1=Q {[%emt 0:00:00]} (82... h1=R $2 83. g8=Q (83. g8=R Rg1 $11) 83... Re1 84. Qc4+ Nc3+ 85. Kf7 $18) 83. g8=Q {[%emt 0:00:05]} Qh4+ {[%emt 0:00:00]} 84. g5 $1 {[%emt 0:00:04]} Nxg5 {[%emt 0:00:00]} 85. Qa2+ {[%emt 0:00:12]} Kd3 {[%emt 0:00:00]} 86. Qb3+ {[%emt 0:00:27]} (86. Qa1 {seems wilder.} Qe4+ 87. Kf6 Nh7+ 88. Kg7) 86... Ke2 {[%emt 0:00:00]} 87. Qc2+ {[%emt 0:00:06]} Ke3 {[%emt 0:00:00]} 88. Qc3+ {[%emt 0:00:46]} Kf4 {[%emt 0:00:00]} 89. Qf6+ {[%emt 0:01:14]} Kg4 {[%emt 0:00:00]} 90. Qd4+ {[%emt 0:00:13]} Ne4+ {[%emt 0:00:00]} (90... Kh3 {simplifies} 91. Qxh4+ Kxh4 92. Kd7 Ne4) 91. Ke6 {[%emt 0:00:17]} Kf4 {[%emt 0:00:00]} 92. Kd5 {[%emt 0:01:01] [#]} (92. Qe5+ $11 {keeps the balance.} Ke3 93. Kd5) 92... Qe7 {[%emt 0:00:00]} ({Black should try} 92... Qd8+ $1 $17 93. Kc4 Qb8) 93. Kc4 {[%emt 0:00:40] The position is equal.} Qe6+ {[%emt 0:00:00]} 94. Kb4 {[%emt 0:00:18]} Qc6 {[%emt 0:00:00]} 95. Qc4 {[%emt 0:01:18]} Qd6+ {[%emt 0:00:00]} (95... Qxc4+ {simplifies} 96. Kxc4 Nf6 97. Kd3 Nh7) 96. Ka5 {[%emt 0:00:10]} Qd8+ {[%emt 0:00:00]} 97. Ka6 {[%emt 0:00:19]} Qd6+ {[%emt 0:00:00]} 98. Ka5 {[%emt 0:00:20]} Qb8 {[%emt 0:00:00]} 99. Qf1+ {[%emt 0:00:17]} Ke3 {[%emt 0:00:00]} 100. Qe1+ {[%emt 0:00:32]} Kd3 {[%emt 0:00:00]} 101. Qf1+ {[%emt 0:00:13]} Kd4 {[%emt 0:00:00]} 102. Qg1+ {[%emt 0:00:17]} Kd5 {[%emt 0:00:00]} 103. Qd1+ {[%emt 0:00:12]} Ke5 {[%emt 0:00:00]} 104. Qh5+ {[%emt 0:00:10]} Ke6 {[%emt 0:00:00]} 105. Qg4+ {[%emt 0:00:08]} Kd5 {[%emt 0:00:00]} 106. Qd1+ {[%emt 0:00:06]} Ke5 {[%emt 0:00:00]} 107. Qh5+ {[%emt 0:00:08]} Kd4 {[%emt 0:00:01]} 108. Qd1+ {[%emt 0:00:06]} Ke3 {[%emt 0:00:49]} 109. Qe1+ {[%emt 0:00:14]} Kd3 {[%emt 0:00:14]} 110. Qf1+ {[%emt 0:00:07]} Kc2 {[%emt 0:00:08]} 111. Qg2+ {[%emt 0:00:29]} Nd2 {[%emt 0:00:08]} 112. Qc6+ {[%emt 0:00:58]} Kd3 {[%emt 0:00:18]} 113. Qd7+ {[%emt 0:01:05]} Kc3 {[%emt 0:00:37]} 114. Qg7+ {[%emt 0:00:25]} Kb3 {[%emt 0:00:07]} 115. Qb7+ $1 {[%emt 0:00:54]} Qxb7 {[%emt 0:00:08] Black had all chances to win.   Weighted Error Value: White=0.15 (very precise) /Black=0.13 (very precise)} 1/2-1/2

[Event "1000GM MLK Day RR IM-Norm 2024"]
[Site "Sunnyvale"]
[Date "2024.01.20"]
[Round "6.1"]
[White "Deng, Henry"]
[Black "Delgado Ramirez, Neuris"]
[Result "0-1"]
[ECO "B23"]
[WhiteElo "2281"]
[BlackElo "2517"]
[Annotator "TA"]
[PlyCount "118"]
[EventDate "2024.01.12"]
[EventType "tourn"]
[EventCountry "USA"]
[SourceTitle "playchess.com"]
[Source "ChessBase"]
[SourceQuality "1"]
[TimeControl "5400+30"]

{[%evp 9,117,12,11,18,16,13,19,13,9,-8,-5,-7,0,-9,-10,-32,-33,-35,-21,-46,-45,-49,-36,-96,-59,-54,-77,-64,-55,-61,-61,-118,-110,-113,-125,-128,-131,-149,-143,-163,-192,-239,-179,-176,-171,-168,-152,-201,-107,-106,-53,-98,-92,-128,-75,-60,-77,-118,-120,-274,-243,-277,-258,-578,-555,-566,-554,-537,-511,-4818,-5181,-2572,-2520,-2314,-2319,-2316,-2287,-1730,-1770,-29958,-29954,-2009,-1699,-29983,-999,-29984,-29985,-29985,-29986,-29986,-29987,-29989,-29990,-29990,-29991,-29992,-29993,-29994,-29994,-29994,-29994,-29994,-29994,-29995,-29995,-29995,-29995,-29996,-29997,-29999]} 1. e4 {[%emt 0:00:30]} c5 {[%emt 0:12:24]} 2. Nc3 {[%emt 0:00:19]} d6 {[%emt 0:00:06]} 3. Bb5+ {[%emt 0:00:29]} Nc6 {[%emt 0:00:06]} 4. Bxc6+ {[%emt 0:00:56]} bxc6 {[%emt 0:00:05]} 5. d3 {[%emt 0:01:07]} e5 {[%emt 0:03:35]} 6. f4 {[%emt 0:02:57] B23: Closed Sicilian: Lines without g3.} exf4 {[%emt 0:01:04]} 7. Bxf4 {[%emt 0:00:22]} Ne7 {[%emt 0:00:12]} 8. Nf3 {[%emt 0:03:17] The position is equal.} Ng6 {[%emt 0:01:03]} 9. Bg5 {[%emt 0:01:43]} f6 {[%emt 0:03:20] [#]} 10. Be3 $146 {[%emt 0:03:15]} ({Predecessor:} 10. Bd2 Be7 11. O-O O-O 12. h4 Bg4 13. Qe1 Bh5 {0-1 Serd,T (1339)-Deline,R (1912) FICGS W-ch st1 g13 email 2009 (1)}) 10... Be7 {[%emt 0:00:05]} 11. Qe2 {[%emt 0:03:14]} O-O {[%emt 0:01:21]} 12. d4 {[%emt 0:06:35]} Qb6 {[%emt 0:06:32]} 13. Qc4+ {[%emt 0:07:09]} Kh8 {[%emt 0:01:03]} (13... Rf7 $5 {[%cal Rb6b2]}) 14. dxc5 {[%emt 0:02:25]} Qxb2 {[%emt 0:11:32]} 15. O-O {[%emt 0:10:13]} dxc5 {[%emt 0:03:53]} 16. a3 {[%emt 0:11:43] Against Qb4} ({White should play} 16. Rab1 $15 Ba6 17. Qxa6 Qxc3 18. Qd3 Qxd3 19. cxd3) 16... Ba6 {[%emt 0:03:19][%mdl 64] Deflection} 17. Qxa6 {[%emt 0:01:37]} Qxc3 {[%emt 0:00:04]} 18. Qd3 {[%emt 0:03:18]} Qa5 $36 {[%emt 0:00:47][%mdl 2048] Black is more active.} 19. Qc4 {[%emt 0:05:23]} Qb5 {[%emt 0:03:38]} 20. Qe6 {[%emt 0:03:58]} (20. Qc3 $15) 20... Rfe8 $17 {[%emt 0:01:31]} 21. a4 {[%emt 0:02:53]} Qa6 {[%emt 0:01:41]} (21... Qe2 {with more complications.} 22. Bd2 Bf8 23. Qxc6 Ne5) 22. Nd2 {[%emt 0:03:55]} Ne5 {[%emt 0:00:54]} 23. Bf4 {[%emt 0:02:05]} c4 {[%emt 0:00:53] Strongly threatening ...Bc5+.} 24. Qh3 {[%emt 0:02:59]} Ng6 {[%emt 0:00:33]} 25. Rab1 {[%emt 0:01:47]} (25. Be3 $142) 25... Rad8 {[%emt 0:03:05]} 26. Qc3 {[%emt 0:02:21]} Nxf4 {[%emt 0:03:48]} 27. Rxf4 {[%emt 0:00:46]} Bc5+ {[%emt 0:00:13]} 28. Kh1 {[%emt 0:00:40]} (28. Kf1 $17 {keeps fighting.}) 28... Bd6 {[%emt 0:02:42]} ({Black should try} 28... Qxa4 $19 {[%cal Oc5e3] ...Be3! would be deadly.} 29. Nxc4 Bd4) 29. Rh4 {[%emt 0:01:53]} Bf8 {[%emt 0:00:07]} (29... Qxa4 $6 30. Qh3 h6 31. Rxh6+ gxh6 32. Qxh6+ Kg8 33. Qg6+ Kf8 34. Qxf6+ Kg8 35. Qg6+ Kh8 36. Qf6+ Kg8 37. Qg6+ Kh8 38. Qf6+ Kg8 $11) (29... Kg8 $17 30. Nxc4 Qxa4 31. Nxd6 Rxd6) 30. Nxc4 {[%emt 0:03:27]} Qxa4 {[%emt 0:08:03][%cal Oa4b5]} 31. h3 {[%emt 0:03:01]} Rb8 {[%emt 0:03:09]} (31... a5 $142 32. Nxa5 c5) 32. Rxb8 {[%emt 0:03:03]} Rxb8 {[%emt 0:00:25]} 33. e5 {[%emt 0:00:21]} Qb4 $1 {[%emt 0:01:18]} 34. Qg3 {[%emt 0:02:04] [#] This costs White the game.} (34. Qxb4 $17 Rxb4 35. exf6) 34... g5 $1 $19 {[%emt 0:05:07]} 35. Re4 {[%emt 0:01:50] [#]} f5 {[%emt 0:06:19]} 36. Rd4 {[%emt 0:01:30]} (36. Qxg5 {is more resistant.} fxe4 37. Nd6 {[%mdl 64] Decoy} Bxd6 38. Qf6+ Kg8 39. Qe6+ Kf8 40. Qf6+ Ke8 41. exd6 Qb1+ 42. Kh2) 36... c5 {[%emt 0:01:04][%mdl 64] Deflection} (36... Bc5 37. Qxg5 Rf8 38. Qd2 $11) 37. Rd7 {[%emt 0:02:03]} Qxc4 {[%emt 0:00:49]} 38. Qxg5 {[%emt 0:00:38]} Qe6 {[%emt 0:00:16] ( -> ...Rb1+)} (38... Qxc2 $2 {gets mated.} 39. Qf6+ (39. Rxa7 $2 {perishes.} Qb1+ 40. Kh2 Qb6 $19) 39... Kg8 40. Qf7+ Kh8 41. Qxh7#) 39. Rd8 {[%emt 0:01:14]} (39. Qf6+ $142 Qxf6 40. exf6) 39... Rb1+ {[%emt 0:00:31]} 40. Kh2 {[%emt 0:00:03]} Qxe5+ {[%emt 0:00:06]} 41. Qg3 {[%emt 0:00:11] [#]} Rh1+ $3 {[%emt 0:00:19][%mdl 512]} 42. Kxh1 {[%emt 0:00:02]} Qxg3 {[%emt 0:00:06]} 43. Rxf8+ {[%emt 0:00:09][%mdl 4096] Endgame KQ-KR} Kg7 {[%emt 0:00:10]} 44. Rxf5 {[%emt 0:00:03]} Qc3 {[%emt 0:00:09]} 45. Rg5+ {[%emt 0:00:11]} Kf6 {[%emt 0:00:08]} 46. Rh5 {[%emt 0:00:09]} Qe1+ {[%emt 0:01:59]} 47. Kh2 {[%emt 0:00:03] [#]} Qe5+ $3 {[%emt 0:00:11][%mdl 512] Black mates.} 48. Rxe5 {[%emt 0:00:03]} Kxe5 {[%emt 0:00:05] K3P-K3P} 49. Kg3 {[%emt 0:00:20]} a5 {[%emt 0:00:05]} 50. Kh4 {[%emt 0:00:18]} a4 {[%emt 0:00:07]} 51. Kh5 {[%emt 0:00:03]} a3 {[%emt 0:00:06]} 52. Kh6 {[%emt 0:00:02]} a2 {[%emt 0:00:07]} 53. Kxh7 {[%emt 0:00:06]} a1=Q {[%emt 0:00:05]} (53... a1=B 54. Kh6 Kf4 55. g4 $19) 54. Kg6 {[%emt 0:00:30]} Qh1 {[%emt 0:00:19]} 55. g4 {[%emt 0:00:22]} Qxh3 {[%emt 0:00:07]} 56. g5 {[%emt 0:00:01]} Qf5+ {[%emt 0:00:08]} 57. Kh6 {[%emt 0:00:05]} Qxc2 {[%emt 0:00:08]} 58. g6 {[%emt 0:00:06]} Kf6 {[%emt 0:00:05][%csl Gf6][%cal Rc2g6]} 59. g7 {[%emt 0:00:07]} Qh2# {[%emt 0:00:06] Weighted Error Value: White=0.60/Black=0.09 (flawless)} 0-1

[Event "1000GM MLK Day RR IM-Norm 2024"]
[Site "Sunnyvale"]
[Date "2024.01.21"]
[Round "6.2"]
[White "Arenas, David"]
[Black "Chiang, Jacob"]
[Result "0-1"]
[ECO "B70"]
[WhiteElo "2406"]
[BlackElo "2200"]
[Annotator "RC"]
[PlyCount "116"]
[EventDate "2024.01.12"]
[EventType "tourn"]
[EventCountry "USA"]
[SourceTitle "playchess.com"]
[Source "ChessBase"]
[SourceQuality "1"]
[TimeControl "5400+30"]

1. g3 {[%emt 0:13:24]} Nf6 {[%emt 0:00:14]} 2. Bg2 {[%emt 0:00:07]} g6 {[%emt 0:00:21]} 3. e4 {[%emt 0:01:50]} d6 {[%emt 0:02:37]} 4. d4 {[%emt 0:00:21]} Bg7 {[%emt 0:00:24]} 5. Nc3 {[%emt 0:00:50]} O-O {[%emt 0:00:34]} 6. Nge2 {[%emt 0:00:06]} c5 {[%emt 0:00:21]} 7. h3 {[%emt 0:06:25]} cxd4 {[%emt 0:00:50]} 8. Nxd4 {[%emt 1:11:27]} Nc6 {[%emt 0:01:07]} 9. Nde2 {[%emt 0:00:00]} Bd7 {[%emt 0:01:24]} 10. O-O {[%emt 0:00:00]} Rc8 {[%emt 0:01:12]} 11. Nf4 {[%emt 0:01:30]} Na5 12. a4 Nc4 13. Ra2 Ne8 14. Nfe2 {[%emt 0:00:00]} Be6 {[%emt 0:09:02]} 15. b3 {[%emt 0:00:00]} Na5 {[%emt 0:15:46]} 16. Nd5 {[%emt 0:00:00]} Nc6 {[%emt 0:02:14]} 17. Bd2 {[%emt 0:00:00]} f5 {[%emt 0:04:40]} 18. Nef4 {[%emt 0:00:00]} Bd7 {[%emt 0:00:30]} 19. exf5 {[%emt 0:00:00]} Bxf5 {[%emt 0:00:41]} 20. Ne3 {[%emt 0:00:00]} Nc7 {[%emt 0:01:59]} 21. Nxf5 {[%emt 0:00:00]} Rxf5 {[%emt 0:00:47]} 22. h4 {[%emt 0:00:00]} e5 {[%emt 0:00:30]} 23. Nd5 {[%emt 0:00:00]} Rf8 {[%emt 0:00:30]} 24. Qg4 {[%emt 0:00:00]} Nxd5 {[%emt 0:00:30]} 25. Bxd5+ {[%emt 0:00:00]} Kh8 {[%emt 0:00:30]} 26. h5 {[%emt 0:00:00]} gxh5 {[%emt 0:00:30]} 27. Qxh5 {[%emt 0:00:00]} Qe8 {[%emt 0:00:30]} 28. Qg4 {[%emt 0:00:00]} Rc7 {[%emt 0:00:30]} 29. a5 {[%emt 0:00:00]} Ne7 {[%emt 0:00:30]} 30. Bg2 {[%emt 0:00:00]} Qf7 {[%emt 0:00:30]} 31. c4 {[%emt 0:00:00]} Nf5 {[%emt 0:00:30]} 32. Bb4 {[%emt 0:00:00]} Qf6 {[%emt 0:00:30]} 33. Rd2 {[%emt 0:00:00]} Bh6 {[%emt 0:00:30]} 34. Rd3 {[%emt 0:00:00]} Rg7 {[%emt 0:00:30]} 35. Qe4 {[%emt 0:00:00]} Nd4 {[%emt 0:00:30]} 36. c5 {[%emt 0:00:00]} d5 {[%emt 0:00:30]} 37. Qxd5 {[%emt 0:00:00]} Ne2+ {[%emt 0:00:30]} 38. Kh1 {[%emt 0:00:00]} Be3 {[%emt 0:00:30]} 39. Qd6 {[%emt 0:00:00]} Qf5 {[%emt 0:00:30]} 40. Qxf8+ {[%emt 0:00:00]} Qxf8 {[%emt 0:00:30]} 41. Rxe3 {[%emt 0:00:00]} Qf5 {[%emt 0:00:30]} 42. Re4 {[%emt 0:00:00]} Nf4 {[%emt 0:00:30]} 43. Bc3 {[%emt 0:00:00]} Nxg2 {[%emt 0:00:30]} 44. Rxe5 {[%emt 0:00:00]} Qh3+ {[%emt 0:00:30]} 45. Kg1 {[%emt 0:00:00]} Kg8 {[%emt 0:00:30]} 46. Re8+ {[%emt 0:00:00]} Kf7 {[%emt 0:00:30]} 47. Bxg7 {[%emt 0:00:00]} Kxe8 {[%emt 0:00:30]} 48. Be5 {[%emt 0:00:00]} Kd7 {[%emt 0:00:30]} 49. a6 {[%emt 0:00:00]} bxa6 {[%emt 0:00:30]} 50. b4 {[%emt 0:00:00]} h5 {[%emt 0:00:30]} 51. Rd1+ {[%emt 0:00:00]} Kc6 {[%emt 0:00:30]} 52. Ra1 {[%emt 0:00:00]} a5 {[%emt 0:00:30]} 53. bxa5 {[%emt 0:00:00]} h4 {[%emt 0:00:30]} 54. Bd6 {[%emt 0:00:00]} hxg3 {[%emt 0:00:30]} 55. fxg3 {[%emt 0:00:00]} Ne3 {[%emt 0:00:30]} 56. Kf2 {[%emt 0:00:00]} Nc4 {[%emt 0:00:30]} 57. Bf4 {[%emt 0:00:00]} Kxc5 {[%emt 0:00:30]} 58. Rc1 {[%emt 0:00:00]} Kb5 {[%emt 0:00:30]} 0-1

[Event "1000GM MLK Day RR IM-Norm 2024"]
[Site "Sunnyvale"]
[Date "2024.01.20"]
[Round "6.3"]
[White "Tang, Dylan"]
[Black "Bansal, Advay"]
[Result "1-0"]
[ECO "B55"]
[WhiteElo "2206"]
[BlackElo "2253"]
[Annotator "RC"]
[PlyCount "97"]
[EventDate "2024.01.12"]
[EventType "tourn"]
[EventCountry "USA"]
[SourceTitle "playchess.com"]
[Source "ChessBase"]
[SourceQuality "1"]
[TimeControl "5400+30"]

1. e4 {[%emt 0:01:52]} c5 {[%emt 0:00:05]} 2. Nf3 {[%emt 0:00:35]} d6 {[%emt 0:00:08]} 3. d4 {[%emt 0:00:19]} cxd4 {[%emt 0:00:10]} 4. Nxd4 {[%emt 0:00:05]} Nf6 {[%emt 0:00:08]} 5. f3 {[%emt 0:00:04]} e5 {[%emt 0:00:54]} 6. Nb3 {[%emt 0:00:45]} d5 {[%emt 0:00:01]} 7. Bg5 {[%emt 0:00:07]} d4 {[%emt 0:00:26]} 8. c3 {[%emt 0:00:06]} Nc6 {[%emt 0:01:14]} 9. cxd4 {[%emt 0:00:17]} Bb4+ {[%emt 0:02:10]} 10. Bd2 {[%emt 0:00:36]} exd4 {[%emt 0:25:01]} 11. Bxb4 {[%emt 0:00:12]} Nxb4 {[%emt 0:00:04]} 12. Bb5+ {[%emt 0:00:07]} Bd7 {[%emt 0:00:18]} 13. Qd2 {[%emt 0:00:08]} Rc8 {[%emt 0:07:25]} 14. Qxb4 {[%emt 0:00:30]} a5 {[%emt 0:16:06]} 15. Bxd7+ {[%emt 0:00:32]} Qxd7 {[%emt 0:00:07]} 16. Qd2 {[%emt 0:00:25]} a4 {[%emt 0:00:41]} 17. Nc1 {[%emt 0:00:26]} O-O {[%emt 0:03:50]} 18. O-O {[%emt 0:00:24]} d3 {[%emt 0:00:02]} 19. Nxd3 {[%emt 0:03:49]} Rfd8 {[%emt 0:00:22]} 20. Rd1 {[%emt 0:00:17]} Qd4+ {[%emt 0:00:15]} 21. Qf2 {[%emt 0:01:16]} Qxd3 {[%emt 0:00:25]} 22. Rxd3 {[%emt 0:01:18]} Rc1+ {[%emt 0:00:03]} 23. Qf1 {[%emt 0:00:07]} Rxf1+ {[%emt 0:00:01]} 24. Kxf1 {[%emt 0:00:06]} Rxd3 {[%emt 0:00:02]} 25. Ke2 {[%emt 0:00:08]} Rd4 {[%emt 0:04:03]} 26. Nc3 {[%emt 0:01:10]} Rb4 {[%emt 0:02:08]} 27. Rb1 {[%emt 0:00:54]} h5 {[%emt 0:22:13]} 28. a3 {[%emt 0:00:54]} Rc4 {[%emt 0:00:43]} 29. Rd1 {[%emt 0:01:54]} h4 {[%emt 0:00:53]} 30. Kd3 {[%emt 0:01:44]} Rc7 {[%emt 0:00:33]} 31. Nxa4 {[%emt 0:02:21]} Nh5 {[%emt 0:00:22]} 32. Ke3 {[%emt 0:00:30]} g5 {[%emt 0:01:11]} 33. Nc3 {[%emt 0:00:20]} Kg7 {[%emt 0:01:16]} 34. Rd2 {[%emt 0:00:42]} Rc6 {[%emt 0:01:48]} 35. Ne2 {[%emt 0:01:59]} Nf6 {[%emt 0:00:40]} 36. g3 {[%emt 0:02:38]} hxg3 {[%emt 0:00:41]} 37. hxg3 {[%emt 0:01:14]} Rc4 {[%emt 0:04:25]} 38. e5 {[%emt 0:01:48]} Nh5 {[%emt 0:01:35]} 39. g4 {[%emt 0:00:14]} Nf4 {[%emt 0:00:53]} 40. Nxf4 {[%emt 0:00:05]} gxf4+ {[%emt 0:00:11]} 41. Kd3 {[%emt 0:00:06]} Ra4 {[%emt 0:01:24]} 42. Re2 {[%emt 0:00:11]} Kg6 {[%emt 0:00:17]} 43. e6 {[%emt 0:00:40]} fxe6 {[%emt 0:00:14]} 44. Rxe6+ {[%emt 0:00:04]} Kg5 {[%emt 0:00:07]} 45. Re5+ {[%emt 0:00:05]} Kh4 {[%emt 0:00:44]} 46. Re4 {[%emt 0:00:06]} Ra6 {[%emt 0:00:09]} 47. Rxf4 {[%emt 0:00:08]} Kg3 {[%emt 0:00:02]} 48. Rf7 {[%emt 0:00:11]} Rb6 {[%emt 0:00:06]} 49. Kc2 {[%emt 0:01:24]} 1-0